[Event "77th GEO-ch Women 2020"]
[Site "Tbilisi"]
[Date "2020.07.25"]
[Round "5.5"]
[White "Arabidze, Meri"]
[Black "Melia, Salome"]
[Result "1-0"]
[ECO "E06"]
[WhiteElo "2428"]
[BlackElo "2370"]
[Annotator "NA"]
[PlyCount "113"]
[EventDate "2020.07.21"]
[EventType "tourn"]
[EventCountry "GEO"]
[SourceTitle "playchess.com"]
[Source "ChessBase"]
[SourceQuality "1"]
[TimeControl "5400+30"]

1. d4 {[%emt 0:00:00]} Nf6 {[%emt 0:00:00]} 2. c4 {[%emt 0:00:00]} e6 {[%emt 0:00:00]} 3. Nf3 {[%emt 0:00:00]} d5 {[%emt 0:00:38]} 4. g3 {[%emt 0:00:16]} Be7 {[%emt 0:00:54]} 5. Bg2 {[%emt 0:00:20]} O-O {[%emt 0:00:10]} 6. O-O {[%emt 0:00:04]} dxc4 {[%emt 0:00:03]} 7. Qc2 {[%emt 0:00:28]} b5 {[%emt 0:00:30]} 8. a4 {[%emt 0:01:23]} b4 {[%emt 0:00:06]} 9. Nbd2 {[%emt 0:01:25]} Bb7 {[%emt 0:02:03]} 10. Nxc4 {[%emt 0:00:16]} c5 {[%emt 0:02:37]} 11. Rd1 {[%emt 0:02:33]} Be4 {[%emt 0:04:28]} 12. Qb3 {[%emt 0:06:22]} Nbd7 {[%emt 0:03:29]} 13. Bf4 {[%emt 0:29:13]} Bd5 {[%emt 0:11:43]} 14. Nfe5 {[%emt 0:03:40]} cxd4 {[%emt 0:13:54]} 15. Bxd5 {[%emt 0:15:01]} exd5 {[%emt 0:05:28]} 16. Nd2 {[%emt 0:04:24]} Nc5 {[%emt 0:05:23]} 17. Qf3 {[%emt 0:00:52]} Rc8 $11 {[%emt 0:03:10]} 18. Nb3 {[%emt 0:02:34]} d3 {[%emt 0:10:10]} 19. Nd4 {[%emt 0:00:28]} dxe2 {[%emt 0:00:27]} 20. Qxe2 {[%emt 0:00:11]} Re8 {[%emt 0:03:56]} 21. Qb5 {[%emt 0:11:38]} Qb6 {[%emt 0:17:59]} 22. Nec6 {[%emt 0:00:12]} Bf8 {[%emt 0:02:20]} 23. Nxb4 {[%emt 0:02:31]} Ne6 {[%emt 0:01:55]} 24. Qxb6 {[%emt 0:04:04]} axb6 {[%emt 0:00:02]} 25. Nbc6 {[%emt 0:01:00]} Nxf4 {[%emt 0:09:33]} 26. gxf4 {[%emt 0:00:06]} Bd6 {[%emt 0:00:03]} 27. b4 {[%emt 0:06:00]} Bxf4 {[%emt 0:00:02]} 28. a5 {[%emt 0:00:22]} bxa5 {[%emt 0:00:02]} 29. bxa5 {[%emt 0:00:10]} Nd7 {[%emt 0:00:37]} 30. a6 {[%emt 0:01:06]} Nb6 {[%emt 0:00:41]} 31. a7 {[%emt 0:01:09]} Na8 {[%emt 0:00:05]} 32. Rdb1 {[%emt 0:02:03]} Kf8 {[%emt 0:00:35]} 33. Rb7 {[%emt 0:01:40]} g6 {[%emt 0:02:22]} 34. Rab1 {[%emt 0:00:39]} Bd6 {[%emt 0:00:58]} 35. Rd7 {[%emt 0:02:04]} Bf4 {[%emt 0:00:01]} 36. Rxd5 {[%emt 0:02:37]} Bc7 {[%emt 0:00:29]} 37. Rdb5 {[%emt 0:00:25]} h5 {[%emt 0:00:38]} 38. Kg2 {[%emt 0:00:22]} Kg7 {[%emt 0:00:53]} 39. Rb7 {[%emt 0:00:49]} Kf8 {[%emt 0:00:17]} 40. R1b3 {[%emt 0:00:27]} Re4 {[%emt 0:00:46]} 41. Rb8 {[%emt 0:00:43]} Ree8 {[%emt 0:00:19]} 42. R3b7 {[%emt 0:00:42]} Bd6 {[%emt 0:00:34]} 43. Rb5 {[%emt 0:00:37]} Bc7 {[%emt 0:00:27]} 44. h3 {[%emt 0:00:13]} Bd6 {[%emt 0:00:20]} 45. Kf3 {[%emt 0:00:07]} Bc7 {[%emt 0:00:21]} 46. Kg2 {[%emt 0:00:09]} Bd6 {[%emt 0:00:16]} 47. Rxc8 {[%emt 0:01:15]} Rxc8 {[%emt 0:00:02]} 48. Rb8 {[%emt 0:00:17]} Re8 {[%emt 0:00:50]} 49. Nd8 {[%emt 0:00:21]} Nc7 {[%emt 0:01:15]} 50. Rc8 {[%emt 0:01:04]} Bc5 {[%emt 0:00:31]} 51. Rxc7 {[%emt 0:00:28]} Bxa7 {[%emt 0:00:22]} 52. Rxf7+ {[%emt 0:00:10]} Kg8 {[%emt 0:00:01]} 53. Rxa7 {[%emt 0:00:29]} Rxd8 {[%emt 0:00:06]} 54. Ne6 {[%emt 0:00:23]} Re8 {[%emt 0:01:37]} 55. Rg7+ {[%emt 0:00:45]} Kh8 {[%emt 0:00:01]} 56. Rxg6 {[%emt 0:00:06]} Kh7 {[%emt 0:00:08]} 57. Rf6 {[%emt 0:00:09]} 1-0

[Event "77th GEO-ch Women 2020"]
[Site "Tbilisi"]
[Date "2020.07.28"]
[Round "7.4"]
[White "Arabidze, Meri"]
[Black "Vakhania, Alexsandra"]
[Result "1-0"]
[ECO "A90"]
[WhiteElo "2428"]
[BlackElo "2138"]
[Annotator "ChessBase"]
[PlyCount "109"]
[EventDate "2020.07.21"]
[EventType "tourn"]
[EventCountry "GEO"]
[SourceTitle "playchess.com"]
[Source "ChessBase"]
[SourceQuality "1"]
[TimeControl "5400+30"]

1. c4 {[%emt 0:00:00]} f5 {[%emt 0:00:07]} 2. d4 {[%emt 0:01:09]} e6 {[%emt 0:00:09]} 3. g3 {[%emt 0:00:33]} Nf6 {[%emt 0:00:07]} 4. Bg2 {[%emt 0:00:09]} d5 {[%emt 0:00:11]} 5. Nh3 {[%emt 0:00:35]} c6 {[%emt 0:00:09]} 6. O-O {[%emt 0:00:12]} Bd6 {[%emt 0:00:08]} 7. Bf4 {[%emt 0:00:24]} O-O {[%emt 0:00:09]} 8. Nd2 {[%emt 0:02:24]} h6 {[%emt 0:00:24]} 9. Bxd6 {[%emt 0:01:56]} Qxd6 {[%emt 0:00:30]} 10. Nf4 {[%emt 0:00:25]} g5 {[%emt 0:03:31]} 11. Ng6 {[%emt 0:06:23]} Rf7 {[%emt 0:03:01]} 12. Ne5 {[%emt 0:02:56]} Rg7 {[%emt 0:00:06]} 13. Rb1 {[%emt 0:05:44]} Bd7 {[%emt 0:01:30]} 14. b4 {[%emt 0:05:35]} Be8 {[%emt 0:00:42]} 15. a4 {[%emt 0:06:01]} Nbd7 {[%emt 0:00:33]} 16. Nxd7 {[%emt 0:02:23]} Bxd7 {[%emt 0:02:34]} 17. b5 {[%emt 0:01:28]} Rf8 {[%emt 0:00:23]} 18. Qc2 {[%emt 0:07:10]} Be8 {[%emt 0:07:40]} 19. bxc6 {[%emt 0:07:06]} Bxc6 {[%emt 0:01:07]} 20. cxd5 {[%emt 0:07:09]} Bxd5 {[%emt 0:01:02]} 21. Bxd5 {[%emt 0:02:23]} Qxd5 {[%emt 0:02:36]} 22. e3 {[%emt 0:06:00]} f4 {[%emt 0:01:22]} 23. Rb5 {[%emt 0:02:42]} Qd7 {[%emt 0:02:40]} 24. Qb3 {[%emt 0:08:26]} Ng4 {[%emt 0:05:17]} 25. exf4 {[%emt 0:05:14]} gxf4 {[%emt 0:00:42]} 26. Ne4 {[%emt 0:02:45]} fxg3 {[%emt 0:04:15]} 27. hxg3 {[%emt 0:00:09]} Qxd4 {[%emt 0:06:49]} 28. Qxe6+ {[%emt 0:01:29]} Kh8 {[%emt 0:03:42]} 29. Rf5 {[%emt 0:02:17]} Rfg8 {[%emt 0:00:27]} 30. Rf4 {[%emt 0:05:43]} Rg6 {[%emt 0:07:30]} 31. Qe7 Qe5 {[%emt 0:08:16]} 32. Qxb7 {[%emt 0:04:17]} Rb6 {[%emt 0:17:01]} 33. Qxa7 {[%emt 0:02:46]} Rb4 {[%emt 0:01:22]} 34. Re1 {[%emt 0:00:56]} Rg7 {[%emt 0:06:04]} 35. Qa8+ {[%emt 0:00:16]} Rb8 {[%emt 0:03:53]} 36. Rf8+ {[%emt 0:00:52]} Rxf8 {[%emt 0:00:04]} 37. Qxf8+ {[%emt 0:00:04]} Kh7 {[%emt 0:00:03]} 38. Qc5 {[%emt 0:00:43]} Qb8 {[%emt 0:02:32]} 39. Qf5+ {[%emt 0:00:22]} Kh8 {[%emt 0:00:37]} 40. Rc1 {[%emt 0:00:48]} Rg8 {[%emt 0:00:40]} 41. Nf6 {[%emt 0:01:56]} Nxf6 {[%emt 0:00:25]} 42. Qxf6+ {[%emt 0:00:02]} Kh7 {[%emt 0:00:06]} 43. Qf7+ {[%emt 0:00:23]} Kh8 {[%emt 0:00:31]} 44. Rc7 {[%emt 0:01:10]} Qb1+ {[%emt 0:02:11]} 45. Kh2 {[%emt 0:00:07]} Qg6 {[%emt 0:00:04]} 46. Qxg6 {[%emt 0:00:36]} Rxg6 {[%emt 0:00:05]} 47. Ra7 {[%emt 0:00:42]} Rc6 {[%emt 0:00:22]} 48. a5 {[%emt 0:00:05]} Rc2 {[%emt 0:00:25]} 49. Kg2 {[%emt 0:00:21]} Ra2 {[%emt 0:00:03]} 50. a6 {[%emt 0:00:17]} Kg8 {[%emt 0:00:06]} 51. Kf3 {[%emt 0:00:28]} Ra4 {[%emt 0:00:20]} 52. g4 {[%emt 0:00:22]} Kh8 {[%emt 0:00:19]} 53. Kg3 {[%emt 0:00:15]} Kg8 {[%emt 0:00:59]} 54. Kh4 {[%emt 0:00:16]} Rf4 {[%emt 0:01:01]} 55. Rb7 {[%emt 0:00:26]} 1-0

[Event "77th GEO-ch Women 2020"]
[Site "Tbilisi"]
[Date "2020.07.28"]
[Round "7.5"]
[White "Melia, Salome"]
[Black "Khomeriki, Nino"]
[Result "1-0"]
[ECO "B31"]
[WhiteElo "2370"]
[BlackElo "2319"]
[Annotator "ChessBase"]
[PlyCount "65"]
[EventDate "2020.07.21"]
[EventType "tourn"]
[EventCountry "GEO"]
[SourceTitle "playchess.com"]
[Source "ChessBase"]
[SourceQuality "1"]
[TimeControl "5400+30"]

1. e4 {[%emt 0:00:00]} c5 {[%emt 0:00:00]} 2. Nf3 {[%emt 0:00:00]} Nc6 {[%emt 0:00:00]} 3. Bb5 {[%emt 0:02:03]} g6 {[%emt 0:00:00]} 4. Bxc6 {[%emt 0:01:31]} bxc6 {[%emt 0:00:01]} 5. O-O {[%emt 0:00:17]} Bg7 {[%emt 0:00:04]} 6. Re1 {[%emt 0:00:12]} Qc7 {[%emt 0:00:11]} 7. c3 {[%emt 0:01:02]} d6 {[%emt 0:00:14]} 8. h3 {[%emt 0:00:32]} Nf6 {[%emt 0:00:32]} 9. d4 {[%emt 0:00:42]} cxd4 {[%emt 0:00:15]} 10. cxd4 {[%emt 0:00:02]} O-O {[%emt 0:00:17]} 11. Nc3 {[%emt 0:01:53]} c5 {[%emt 0:00:35]} 12. dxc5 {[%emt 0:06:48]} dxc5 {[%emt 0:00:08]} 13. Bg5 {[%emt 0:01:35]} Rd8 {[%emt 0:09:53]} 14. Qc1 {[%emt 0:00:36]} Be6 {[%emt 0:04:10]} 15. Bh6 {[%emt 0:06:55]} Rac8 {[%emt 0:05:20]} 16. Bxg7 {[%emt 0:07:51]} Kxg7 {[%emt 0:00:25]} 17. Qe3 {[%emt 0:00:12]} Qb6 {[%emt 0:04:10]} 18. Rab1 {[%emt 0:09:53]} h6 {[%emt 0:03:33]} 19. Qf4 {[%emt 0:09:52]} c4 {[%emt 0:05:44]} 20. e5 {[%emt 0:05:27]} Nd5 {[%emt 0:03:00]} 21. Qh4 {[%emt 0:00:32]} g5 {[%emt 0:14:50]} 22. Nxg5 {[%emt 0:07:58]} hxg5 {[%emt 0:02:42]} 23. Qxg5+ {[%emt 0:00:06]} Kf8 {[%emt 0:00:06]} 24. Rbd1 {[%emt 0:11:12]} Qxb2 {[%emt 0:11:00]} 25. Qh6+ {[%emt 0:02:13]} Ke8 {[%emt 0:02:41]} 26. Nxd5 {[%emt 0:02:18]} Kd7 {[%emt 0:04:48]} 27. Nb6+ {[%emt 0:06:19]} Kc7 {[%emt 0:00:12]} 28. Nxc8 {[%emt 0:00:17]} Rxc8 {[%emt 0:00:06]} 29. Qe3 {[%emt 0:01:32]} Qb6 {[%emt 0:00:25]} 30. Qa3 {[%emt 0:01:23]} Re8 {[%emt 0:00:07]} 31. Rb1 {[%emt 0:00:23]} Qd4 {[%emt 0:00:04]} 32. Qa5+ {[%emt 0:00:59]} Kc8 {[%emt 0:00:22]} 33. Qa6+ {[%emt 0:01:16]} 1-0